bitfinex-derivatives/quotes_ETHF0:USTF0_20250621
["timestamp","ask_amount","ask_price","bid_price","bid_amount"]
[1750469098336,3.92817599,2416.7,2416.3,0.82755]
[1750469098538,0.82749,2416.5,2416.3,1.369]
[1750469099239,0.82747,2416.6,2416.3,2.19655]
[1750469099439,0.82748,2416.5,2416.3,2.19655]
[1750469100134,0.82748,2416.5,2416.3,1.369]
[1750469100335,0.82748,2416.5,2416.3,2.19655]
[1750469101937,0.82747,2416.6,2416.3,2.19655]
[1750469102233,1.47933,2416.7,2416.4,4.25649676]
[1750469102436,1.94599638,2416.6,2416.4,4.78769676]
[1750469102637,0.82748,2416.5,2416.4,4.78769676]
[1750469103641,0.82747,2416.6,2416.4,4.78769676]
[1750469103941,0.82747,2416.6,2416.4,5.61521676]
[1750469104239,1.47934,2416.7,2416.4,5.61521676]
[1750469104428,1.11846818,2416.6,2416.4,4.78769676]
[1750469104633,1.47934,2416.7,2416.4,4.78769676]
[1750469104837,1.94581889,2416.6,2416.4,4.78769676]
[1750469105037,0.82745,2416.6,2416.4,4.78769676]
[1750469105332,0.06847599,2416.5,2416.4,4.78769676]
[1750469107439,0.06847599,2416.5,2416.4,5.44829676]
[1750469107840,0.89595599,2416.5,2416.4,4.08959676]
[1750469108639,0.89595599,2416.5,2416.4,3.42899676]
[1750469109030,0.89595599,2416.5,2416.3,0.6606]
[1750469110132,0.06847599,2416.5,2416.3,1.48815]
[1750469110333,0.89595599,2416.5,2416.3,1.48815]
[1750469110532,0.06847599,2416.5,2416.3,1.48815]
[1750469111031,0.89596599,2416.5,2416.3,0.6606]
[1750469111527,0.82752,2416.4,2416.3,0.6606]
[1750469112041,0.89598599,2416.5,2416.3,0.6606]
[1750469112843,0.82752,2416.4,2416.3,0.6606]
[1750469113043,0.89597599,2416.5,2416.3,0.6606]
[1750469113948,0.06847599,2416.5,2416.4,3.42899676]
[1750469115453,0.82746,2416.6,2416.4,3.42899676]
[1750469115842,3.8597,2416.7,2416.4,4.25651676]
[1750469116148,1.11841584,2416.6,2416.4,4.25651676]
[1750469116356,4.68714,2416.7,2416.4,5.57101676]
[1750469116550,1.1184494,2416.6,2416.4,5.57101676]
[1750469116847,4.03524,2416.7,2416.5,0.82748]
[1750469117038,1.11846096,2416.6,2416.5,0.82748]
[1750469117245,1.11846096,2416.6,2416.4,5.57099676]
[1750469117445,4.03523,2416.7,2416.4,5.57099676]
[1750469117646,1.11852709,2416.6,2416.4,5.57099676]
[1750469117848,4.03523,2416.7,2416.4,5.57099676]
[1750469118049,1.11853547,2416.6,2416.4,5.57099676]
[1750469118249,4.03523,2416.7,2416.4,5.57099676]
[1750469118449,0.06847599,2416.5,2416.4,5.57099676]
[1750469119450,4.03523,2416.7,2416.4,5.57099676]
[1750469119654,1.1052948,2416.6,2416.4,5.57099676]
[1750469119949,4.03523,2416.7,2416.4,5.57099676]
[1750469120143,1.93276203,2416.6,2416.4,1.3145]
[1750469120348,0.82745,2416.6,2416.3,4.91712676]
[1750469120744,0.82745,2416.6,2416.3,6.33002676]
[1750469120955,0.8275,2416.5,2416.3,5.50249676]
[1750469121253,0.82752,2416.4,2416.3,5.50249676]
[1750469121553,0.8275,2416.5,2416.3,4.08959676]
[1750469123258,1.10590879,2416.4,2416.3,4.08959676]
[1750469123451,1.93342879,2416.4,2416.3,4.08959676]
[1750469123963,4.31370879,2416.4,2416.1,4.08459676]
[1750469124256,0.82756,2416.3,2416.1,11.25529676]
[1750469124559,4.03534,2416.4,2416.1,12.08291676]
[1750469125054,0.82754,2416.4,2416.1,12.08291676]
[1750469125857,1.50289,2416.5,2416.3,3.42899676]
[1750469126554,1.50289,2416.5,2416.2,2.16027]
[1750469126855,0.82752,2416.4,2416.2,1.3327]
[1750469127055,0.82752,2416.4,2416.1,12.08289676]
[1750469128263,1.5029,2416.5,2416.2,0.82757]
[1750469130758,0.6754,2416.5,2416.3,0.82755]
[1750469131159,0.6754,2416.5,2416.4,0.7116]
[1750469131364,1.78135762,2416.5,2416.4,0.7116]
[1750469132459,1.10595762,2416.5,2416.4,0.7116]
[1750469132660,1.10595762,2416.5,2416.4,1.53912]
[1750469133464,4.10369599,2416.7,2416.4,1.53912]
[1750469133762,1.10591257,2416.6,2416.5,4.73759676]
[1750469135665,1.93336257,2416.6,2416.5,4.73759676]
[1750469135961,1.93336257,2416.6,2416.5,3.42899676]
[1750469136165,1.10591257,2416.6,2416.5,3.42899676]
[1750469136461,1.10591257,2416.6,2416.4,1.53912]
[1750469136658,4.03524,2416.7,2416.4,4.96811676]
[1750469136867,0.06847599,2416.5,2416.4,4.96811676]
[1750469139366,0.06847599,2416.5,2416.3,6.507]
[1750469140065,0.06847599,2416.5,2416.3,7.33455]
[1750469140364,0.06847599,2416.5,2416.3,8.73345]
[1750469140564,0.89596599,2416.5,2416.3,7.9059]
[1750469140966,0.06847599,2416.5,2416.3,7.9059]
[1750469141566,0.06847599,2416.5,2416.3,8.73345]
[1750469143865,3.2078,2416.7,2416.4,3.42899676]
[1750469144068,1.1053753,2416.6,2416.5,0.82748]
[1750469144264,4.03522,2416.7,2416.5,2.0156]
[1750469144456,3.2078,2416.7,2416.5,2.84308]
[1750469146070,3.2078,2416.7,2416.6,0.6987]
[1750469146265,5.14053119,2416.7,2416.6,0.6987]
[1750469146467,5.14053873,2416.7,2416.6,0.6987]
[1750469149875,5.20901472,2416.7,2416.6,0.6987]
[1750469154976,5.14053873,2416.7,2416.6,0.6987]
[1750469156074,5.20901472,2416.7,2416.6,0.6987]
[1750469156977,5.14053873,2416.7,2416.6,0.6987]
[1750469158079,5.20901472,2416.7,2416.6,0.6987]
[1750469159884,2.00121472,2416.7,2416.6,0.6987]
[1750469162177,1.10531873,2416.7,2416.6,4.12769676]
[1750469162370,1.10531873,2416.7,2416.6,5.53279676]
[1750469162570,1.10531873,2416.7,2416.6,4.12769676]
[1750469164879,3.2078,2416.8,2416.6,4.12769676]
[1750469165077,3.2078,2416.8,2416.6,6.31151676]
[1750469165278,3.2078,2416.8,2416.7,1.3564]
[1750469166778,3.2078,2416.8,2416.7,2.18382]
[1750469167379,3.2078,2416.8,2416.7,1.3564]
[1750469168681,4.03518,2416.8,2416.7,1.3564]
[1750469169976,3.2078,2416.8,2416.7,2.18382]
[1750469171979,4.03508,2417.1,2416.9,0.82735]
[1750469172280,0.82732,2417.0,2416.9,3.42899676]
[1750469172474,4.0351,2417.1,2416.9,4.25633676]
[1750469172674,3.2078,2417.1,2416.9,4.25633676]
[1750469172872,3.2078,2417.1,2417.0,0.82731]
[1750469173278,3.2078,2417.1,2416.9,4.25632676]
[1750469173877,3.2078,2417.1,2416.8,0.6486]
[1750469174076,0.82732,2417.0,2416.8,0.6486]
[1750469174276,1.50592,2417.0,2416.8,0.6486]
[1750469174982,0.6786,2417.0,2416.8,1.47598]
[1750469175285,0.74707599,2417.0,2416.8,1.47598]
[1750469175580,1.57439599,2417.0,2416.8,1.47598]
[1750469175983,0.74707599,2417.0,2416.8,1.47598]
[1750469176178,0.06847599,2417.0,2416.8,2.87058]
[1750469176387,4.03509,2417.1,2416.8,2.87058]
[1750469177288,0.06847599,2417.0,2416.8,2.87058]
[1750469177481,0.06847599,2417.0,2416.9,3.42899676]
[1750469178379,3.2078,2417.1,2416.9,3.42899676]
[1750469179081,1.50586,2417.2,2416.9,3.42899676]
[1750469179286,0.82728,2417.1,2416.9,3.42899676]
[1750469179485,1.50586,2417.2,2416.9,4.25633676]
[1750469179689,0.6786,2417.2,2416.9,4.82019676]
[1750469179878,0.6786,2417.2,2416.9,5.64751676]
[1750469180077,1.50586,2417.2,2416.9,5.64751676]
[1750469180477,0.82726,2417.2,2417.1,3.42899676]
[1750469180675,0.82723,2417.3,2417.1,3.42899676]
[1750469181090,0.82723,2417.3,2417.1,4.07329676]
[1750469181281,0.82724,2417.2,2417.1,4.07329676]
[1750469185388,0.82723,2417.3,2417.1,4.07329676]
[1750469185590,0.82724,2417.2,2417.1,4.07329676]
[1750469186990,0.82724,2417.2,2417.1,5.39559676]
[1750469188681,0.82724,2417.3,2417.1,5.39559676]
[1750469189980,4.035,2417.4,2417.1,6.22285676]
[1750469190175,4.035,2417.4,2417.3,3.42899676]
[1750469190784,4.03498,2417.4,2417.3,3.42899676]
[1750469193992,3.2078,2417.4,2417.3,3.42899676]
[1750469194290,0.7056,2417.6,2417.3,9.92299676]
[1750469194291,0.82712,2417.6,2417.3,9.92299676]
[1750469194490,0.82712,2417.6,2417.5,3.42899676]
[1750469195191,0.82711,2417.6,2417.5,4.81079676]
[1750469196387,0.82714,2417.5,2417.4,7.1568]
[1750469196691,1.49554,2417.5,2417.4,7.1568]
[1750469198496,0.82713,2417.6,2417.4,7.1568]
[1750469198693,0.82713,2417.6,2417.5,3.42899676]
[1750469209803,0.06847599,2417.6,2417.5,3.42899676]
[1750469210006,0.06847599,2417.6,2417.5,5.43489676]
[1750469210204,0.89558599,2417.6,2417.5,2.0059]
[1750469210497,0.06847599,2417.6,2417.5,5.43489676]
[1750469210803,0.06847599,2417.6,2417.5,9.46983676]
[1750469211994,3.2078,2418.5,2417.5,13.64269676]
[1750469212193,1.50277,2418.3,2418.2,3.42899676]
[1750469212399,2.60173404,2418.3,2418.2,3.42899676]
[1750469213200,1.50277,2418.3,2418.2,3.42899676]
[1750469213403,2.60165666,2418.3,2418.2,3.42899676]
[1750469213708,1.50277,2418.3,2418.2,3.42899676]
[1750469217302,0.82687,2418.3,2418.2,3.42899676]
[1750469217605,0.82685,2418.4,2418.2,6.63679676]
[1750469217805,0.82685,2418.4,2418.3,0.6545]
[1750469221010,0.82682,2418.5,2418.3,0.6545]
[1750469221208,0.82682,2418.5,2418.4,3.42899676]
[1750469221513,0.82679,2418.6,2418.4,3.42899676]
[1750469221711,0.82679,2418.6,2418.5,3.42899676]
[1750469223515,0.82675,2418.7,2418.5,3.42899676]
[1750469223810,0.82675,2418.7,2418.6,3.42899676]
[1750469224001,0.82675,2418.7,2418.6,4.10419676]
[1750469224203,3.8801,2418.8,2418.4,4.11789676]
[1750469224204,0.8268,2418.5,2418.4,4.11789676]
[1750469224415,3.2078,2418.8,2418.4,4.11789676]
[1750469224606,0.82673,2418.7,2418.6,3.42899676]
[1750469225306,0.82665,2419.0,2418.6,4.10419676]
[1750469225609,3.2078,2419.5,2418.9,3.42899676]
[1750469225801,0.82656,2419.2,2419.1,3.42899676]
[1750469226006,0.82646,2419.5,2419.1,13.95036676]
[1750469226207,0.6529,2419.8,2419.4,6.63679676]
[1750469226404,3.2078,2419.9,2419.6,3.42899676]
[1750469226608,4.03414,2419.9,2419.8,3.42899676]
[1750469226804,3.2078,2419.9,2419.8,3.42899676]
[1750469227107,0.82621,2420.3,2419.9,0.82631]
[1750469227312,0.82616,2420.4,2420.3,3.42899676]
[1750469227612,6.63679676,2420.6,2419.9,3.42899676]
[1750469227812,0.82624,2420.2,2419.9,9.91499676]
[1750469228008,1.3801,2420.5,2419.9,9.91499676]
[1750469228215,3.2078,2420.3,2419.7,9.91499676]
[1750469228415,2.7163,2420.2,2419.7,9.91499676]
[1750469228615,0.82636,2419.8,2419.7,9.91499676]
[1750469230316,0.82642,2419.6,2419.5,8.00079676]
[1750469230711,0.82642,2419.6,2419.2,3.2078]
[1750469230916,0.82652,2419.4,2419.3,3.42899676]
[1750469231311,0.6534,2419.5,2419.3,3.42899676]
[1750469231818,0.82649,2419.4,2419.3,3.42899676]
[1750469236924,0.82649,2419.4,2419.3,4.13539676]
[1750469237223,0.82649,2419.4,2419.3,5.43019676]
[1750469241832,0.82649,2419.4,2419.3,4.13539676]
[1750469242621,0.82653,2419.3,2419.2,3.2078]
[1750469242921,0.82663,2419.0,2418.8,4.0345]
[1750469243126,0.82666,2418.9,2418.8,6.63679676]
[1750469243438,0.82659,2419.1,2418.8,7.46346676]
[1750469243625,0.82659,2419.1,2419.0,3.42899676]
[1750469245633,0.82659,2419.2,2419.0,3.42899676]
[1750469245822,8.4458,2419.6,2419.0,5.55110676]
[1750469246023,0.82654,2419.3,2419.2,3.42899676]
[1750469246624,0.8265,2419.4,2419.2,3.42899676]
[1750469246930,0.8265,2419.4,2419.3,0.6691]
[1750469247124,0.82648,2419.5,2419.3,1.9646]
[1750469247323,0.82648,2419.5,2419.4,4.07579676]
[1750469248833,5.27382,2419.7,2419.1,3.42899676]
[1750469249032,0.82659,2419.1,2419.0,6.501]
[1750469249331,0.82658,2419.2,2419.0,6.501]
[1750469249532,0.82658,2419.2,2419.1,4.08589676]
[1750469251335,0.82658,2419.2,2419.1,0.6569]
[1750469251928,0.82658,2419.2,2419.1,4.08589676]
[1750469252732,0.82655,2419.3,2419.1,4.08589676]
[1750469252937,0.82655,2419.3,2419.2,2.0841]
[1750469254034,0.82655,2419.3,2419.2,0.681]
[1750469254340,0.82659,2419.1,2419.0,6.501]
[1750469254539,0.82659,2419.1,2419.0,7.1444]
[1750469256635,0.82659,2419.1,2419.0,0.6434]
[1750469256841,2.022,2419.3,2418.8,6.63679676]
[1750469257042,2.022,2419.3,2418.8,7.92719676]
[1750469257441,0.82666,2418.9,2418.8,7.92719676]
[1750469257845,0.82666,2418.9,2418.8,3.2078]
[1750469258742,0.82666,2418.9,2418.8,6.63679676]
[1750469260451,8.5672,2419.5,2418.8,7.46348676]
[1750469260651,0.82664,2419.0,2418.8,4.5876]
[1750469261349,0.82663,2419.0,2418.9,6.501]
[1750469261748,0.82663,2419.0,2418.9,9.92999676]
[1750469262646,5.27353,2420.0,2418.9,18.35899352]
[1750469262853,0.82642,2419.6,2419.5,3.42899676]
[1750469263154,0.82649,2419.4,2419.3,4.75689676]
[1750469263544,0.82649,2419.4,2419.3,1.3279]
[1750469264842,0.82653,2419.3,2419.2,3.2078]
[1750469266052,0.82656,2419.2,2419.1,4.08189676]
[1750469266550,1.3659,2419.6,2419.1,4.08189676]
[1750469266551,0.82655,2419.3,2419.1,4.08189676]
[1750469267451,0.82656,2419.2,2419.1,4.08189676]
[1750469267958,0.82656,2419.2,2419.1,5.43609676]
[1750469268351,0.82656,2419.2,2419.1,2.0071]
[1750469268550,0.82656,2419.2,2419.1,5.43609676]
[1750469269455,0.82656,2419.2,2419.1,4.08189676]
[1750469273561,0.82656,2419.2,2419.1,0.6529]
[1750469275356,6.551,2419.4,2418.9,6.50314046]
[1750469275563,0.82663,2419.0,2418.9,6.50314046]
[1750469276458,0.82663,2419.0,2418.9,3.2078]
[1750469277355,0.699,2419.1,2418.7,8.07683722]
[1750469277655,0.82668,2418.9,2418.7,8.07683722]
[1750469277853,0.82668,2418.9,2418.7,9.46623722]
[1750469278259,0.8267,2418.8,2418.7,9.46623722]
[1750469280463,0.8267,2418.8,2418.7,6.17089676]
[1750469292172,0.8267,2418.8,2418.7,6.99762676]
[1750469292373,0.8267,2418.8,2418.7,6.17089676]
[1750469293975,2.06632,2419.3,2418.7,10.29185946]
[1750469294169,2.06632,2419.3,2418.8,1.3823]
[1750469294470,0.82666,2418.9,2418.8,1.3823]
[1750469294872,0.82665,2419.0,2418.8,2.20898]
[1750469295066,0.82665,2419.0,2418.9,7.94199676]
[1750469295267,0.82665,2419.0,2418.9,8.76865676]
[1750469297074,0.82665,2419.0,2418.9,7.94199676]
[1750469300776,0.82665,2419.0,2418.9,8.76865676]
[1750469301278,0.82665,2419.0,2418.9,11.23624946]
[1750469301875,0.82665,2419.0,2418.9,12.06290946]
[1750469302565,0.82665,2419.0,2418.9,11.23624946]
[1750469302769,0.82665,2419.0,2418.9,12.06290946]
[1750469302970,0.82662,2419.1,2418.9,12.06290946]
[1750469303166,5.49508676,2419.6,2418.9,12.06290946]
[1750469303167,0.82658,2419.2,2419.0,1.997]
[1750469303373,0.82655,2419.3,2419.1,4.92467676]
[1750469303570,0.82655,2419.3,2419.2,0.82656]
[1750469303772,0.82655,2419.3,2419.2,2.17936]
[1750469304079,0.6663,2419.6,2419.3,0.82652]
[1750469304080,0.82648,2419.5,2419.3,0.82652]
[1750469304377,0.82648,2419.5,2419.4,4.78179676]
[1750469307482,3.2078,2419.7,2419.2,3.2078]
[1750469307483,0.82653,2419.3,2419.2,3.2078]
[1750469307692,0.82653,2419.3,2419.2,3.8698]
[1750469308774,0.82656,2419.2,2419.1,4.09809676]
[1750469308972,0.82655,2419.3,2419.1,4.09809676]
[1750469309175,8.70449676,2420.0,2419.2,3.2078]
[1750469309378,0.82653,2419.3,2419.2,6.63679676]
[1750469309570,0.82653,2419.3,2419.2,7.93799676]
[1750469310086,0.82653,2419.3,2419.2,8.61779676]
[1750469311086,0.82651,2419.4,2419.2,8.61779676]
[1750469311287,0.6728,2419.7,2419.2,9.44435676]
[1750469311587,0.82646,2419.5,2419.4,3.42899676]
[1750469314885,0.82653,2419.3,2419.2,13.82059676]
[1750469315082,0.82653,2419.3,2419.2,3.8876]
[1750469315385,0.82656,2419.2,2419.1,7.1731]
[1750469315795,0.82656,2419.2,2419.1,6.504]
[1750469321693,0.82655,2419.3,2419.1,6.504]
[1750469321896,0.82654,2419.3,2419.2,6.63679676]
[1750469322189,1.3329,2419.6,2419.2,6.63679676]
[1750469322390,1.3329,2419.6,2419.3,0.6636]
[1750469322592,0.6685,2419.6,2419.3,1.9723]
[1750469322799,0.82647,2419.5,2419.3,1.9723]
[1750469323000,1.49495,2419.6,2419.3,2.79882]
[1750469323295,0.82648,2419.5,2419.3,1.9723]
[1750469323498,0.82649,2419.4,2419.3,1.9723]
[1750469325198,0.82649,2419.5,2419.3,2.79883]
[1750469325400,0.82649,2419.5,2419.4,3.42899676]
[1750469325901,0.82649,2419.4,2419.3,5.40129676]
[1750469329203,0.82649,2419.4,2419.3,6.22782676]
[1750469329398,0.7108,2419.9,2419.3,5.40129676]
[1750469329608,0.82643,2419.6,2419.5,3.42899676]
[1750469333004,0.82643,2419.6,2419.5,4.75809676]
[1750469333912,0.82643,2419.6,2419.5,3.42899676]
[1750469335724,0.82646,2419.5,2419.3,4.09259676]
[1750469335909,0.82646,2419.5,2419.3,4.91911676]
[1750469336517,0.82646,2419.5,2419.3,6.21651676]
[1750469336716,0.6534,2419.8,2419.3,5.38999676]
[1750469336717,0.82649,2419.4,2419.3,5.38999676]
[1750469337119,0.82648,2419.5,2419.3,5.38999676]
[1750469337619,0.82649,2419.4,2419.3,4.09259676]
[1750469338416,0.82653,2419.3,2419.2,6.5020527]
[1750469338614,0.82656,2419.2,2419.1,6.504]
[1750469340719,0.82656,2419.2,2419.1,7.33059]
[1750469341220,0.82655,2419.3,2419.1,7.33059]
[1750469341518,0.82655,2419.3,2419.2,3.42899676]
[1750469341920,3.2078,2419.7,2419.4,0.82649]
[1750469342119,3.2078,2419.7,2419.2,6.63679676]
[1750469342120,0.82642,2419.6,2419.5,4.08449676]
[1750469342622,0.8264,2419.7,2419.5,4.91093676]
[1750469342920,0.8264,2419.7,2419.6,3.42899676]
[1750469343619,0.82648,2419.5,2419.3,4.25550676]
[1750469343822,0.82648,2419.5,2419.4,0.6555]
[1750469346324,0.82649,2419.4,2419.3,3.42899676]
[1750469349634,0.82649,2419.4,2419.3,4.25552676]
[1750469349833,0.6867,2419.6,2419.3,4.25552676]
[1750469349834,0.82648,2419.5,2419.3,4.25552676]
[1750469350435,0.82648,2419.5,2419.3,5.58682676]
[1750469351335,0.82649,2419.4,2419.3,3.42899676]
[1750469352526,0.82649,2419.4,2419.3,4.25552676]
[1750469353230,0.82649,2419.4,2419.3,3.42899676]
[1750469353534,0.82649,2419.4,2419.3,4.25552676]
[1750469359140,0.82649,2419.4,2419.3,3.42899676]
[1750469360336,0.82649,2419.4,2419.3,4.25552676]
[1750469360637,0.82649,2419.4,2419.3,3.42899676]
[1750469360834,0.82647,2419.5,2419.4,0.82649]
[1750469361037,0.82647,2419.5,2419.3,4.25549676]
[1750469361837,0.82649,2419.4,2419.3,4.25549676]
[1750469362431,0.6867,2419.6,2419.2,7.9730127]
[1750469362635,0.82651,2419.4,2419.2,7.1464527]
[1750469363037,0.82651,2419.4,2419.2,8.5652527]
[1750469363341,0.82648,2419.5,2419.3,4.25549676]
[1750469363534,1.51315,2419.6,2419.3,3.42899676]
[1750469363831,0.82651,2419.4,2419.2,7.9729927]
[1750469364435,0.82648,2419.5,2419.4,0.82649]
[1750469364633,0.82648,2419.5,2419.3,4.25550676]
[1750469364939,1.51314,2419.6,2419.4,0.82649]
[1750469365340,1.51314,2419.6,2419.5,0.6554]
[1750469366938,0.82644,2419.6,2419.5,0.6554]
[1750469367537,0.82646,2419.5,2419.3,4.1207527]
[1750469367729,0.82646,2419.5,2419.4,0.82649]
[1750469367925,0.82645,2419.6,2419.4,0.82649]
[1750469368230,0.82645,2419.6,2419.5,0.82646]
[1750469368436,0.82645,2419.6,2419.4,2.21227]
[1750469368838,1.4874,2419.7,2419.5,0.82646]
[1750469369033,0.8264,2419.7,2419.6,0.82642]
[1750469369235,0.8264,2419.7,2419.6,2.7122]
[1750469369737,0.8264,2419.7,2419.6,1.3264]
[1750469370939,0.82649,2419.4,2419.3,3.2942527]
[1750469371241,0.82653,2419.3,2419.2,6.5020527]
[1750469371447,0.82656,2419.2,2419.1,3.2942527]
[1750469371640,4.71009676,2419.5,2419.0,10.4589527]
[1750469371835,0.82657,2419.2,2419.0,4.79061127]
[1750469372044,0.82657,2419.2,2419.1,6.72828803]
[1750469373145,0.82655,2419.3,2419.1,6.72828803]
[1750469373849,2.10762,2419.4,2419.1,6.72828803]
[1750469374151,0.82652,2419.4,2419.2,0.82656]
[1750469374646,0.82653,2419.3,2419.1,8.93776803]
[1750469374846,0.82651,2419.4,2419.1,8.93776803]
[1750469375047,0.82653,2419.3,2419.1,8.93776803]
[1750469377150,0.82653,2419.3,2419.1,5.63847676]
[1750469377449,0.82653,2419.3,2419.1,8.93776803]
[1750469377750,0.82653,2419.3,2419.1,5.63847676]
[1750469377949,0.82653,2419.3,2419.1,8.93776803]
[1750469378146,0.82653,2419.3,2419.1,5.63847676]
[1750469378550,0.82653,2419.3,2419.1,8.93776803]
[1750469378750,0.82651,2419.4,2419.2,0.82656]
[1750469379151,0.82653,2419.3,2419.1,8.93775803]
[1750469379948,0.7002,2419.6,2419.1,8.11118803]
[1750469380147,0.82648,2419.5,2419.3,4.25550676]
[1750469380653,0.82648,2419.5,2419.4,0.6609]
[1750469384055,0.7002,2419.6,2419.4,1.48739]
[1750469384252,0.82646,2419.5,2419.4,0.6609]
[1750469385757,0.82646,2419.5,2419.4,1.48739]
[1750469385959,1.52665,2419.6,2419.4,1.48738]
[1750469386156,7.1432,2419.9,2419.5,0.82646]
[1750469386157,0.82641,2419.7,2419.5,0.82646]
[1750469386361,0.6935,2419.8,2419.5,3.42899676]
[1750469386570,0.6935,2419.8,2419.4,2.0467]
[1750469386762,0.82646,2419.5,2419.4,2.0467]
[1750469387671,0.82646,2419.5,2419.4,0.6609]
[1750469390471,0.82649,2419.4,2419.3,3.2078]
[1750469392073,0.82649,2419.4,2419.3,6.63679676]
[1750469397775,0.82649,2419.4,2419.3,7.46332676]
[1750469398276,0.82649,2419.4,2419.3,6.63679676]
[1750469401582,0.82649,2419.4,2419.3,3.2078]
[1750469406877,1.2909,2419.4,2419.0,10.76271803]
[1750469407180,0.82649,2419.4,2419.3,3.2078]
[1750469408083,0.6626,2419.7,2419.3,3.2078]
[1750469408280,1.10695905,2419.6,2419.4,0.6578]
[1750469408475,0.82646,2419.5,2419.4,0.6578]
[1750469413489,0.82646,2419.5,2419.4,5.45949676]
[1750469415082,3.2078,2419.8,2419.4,5.45949676]
[1750469415388,0.82642,2419.6,2419.5,1.3727]
[1750469417589,0.82642,2419.7,2419.5,2.19914]
[1750469418089,0.82642,2419.7,2419.6,1.3551]
[1750469418684,0.82642,2419.7,2419.6,4.78409676]
[1750469419294,0.82642,2419.7,2419.6,7.99189676]
[1750469419683,0.6605,2420.1,2419.6,7.99189676]
[1750469419891,0.82635,2419.8,2419.7,12.59519676]
[1750469420185,0.8263,2420.0,2419.7,13.42157676]
[1750469420387,0.8263,2420.0,2419.8,1.3141]
[1750469421184,0.8263,2420.0,2419.8,2.14045]
[1750469421384,0.82632,2419.9,2419.8,1.3141]
[1750469423790,0.82636,2419.8,2419.7,11.28109676]
[1750469424594,0.82636,2419.8,2419.7,12.57169676]
[1750469424895,0.82636,2419.8,2419.7,7.8521]
[1750469425895,0.82639,2419.7,2419.6,9.7028]
[1750469426196,1.47639,2419.7,2419.6,9.7028]
[1750469428288,1.47639,2419.7,2419.6,6.495]
[1750469428487,0.82649,2419.4,2419.3,7.20619127]
[1750469428689,0.82649,2419.4,2419.3,11.0808]
[1750469431794,0.82649,2419.4,2419.3,14.50979676]
[1750469432193,0.82645,2419.6,2419.4,0.82648]
[1750469432394,0.82645,2419.6,2419.5,3.42899676]
[1750469432693,0.82645,2419.6,2419.5,4.84449676]
[1750469434699,0.82645,2419.6,2419.5,1.4155]
[1750469435390,0.82646,2419.5,2419.4,0.82649]
[1750469435602,0.82646,2419.5,2419.3,18.63558803]
[1750469436701,0.82649,2419.4,2419.3,17.80908803]
[1750469436995,3.4599,2419.8,2419.3,15.33630676]
[1750469437201,1.394,2419.8,2419.5,0.82645]
[1750469437400,0.82642,2419.6,2419.5,3.42899676]
[1750469437590,0.82641,2419.7,2419.5,3.42899676]
[1750469438090,0.82641,2419.7,2419.5,4.25543676]
[1750469438302,0.82642,2419.6,2419.5,4.25543676]
[1750469441608,0.82641,2419.7,2419.5,4.25543676]
[1750469441808,0.82641,2419.7,2419.6,0.82642]
[1750469442208,0.82641,2419.7,2419.5,4.25543676]
[1750469442508,0.82641,2419.7,2419.6,0.82642]
[1750469443015,0.82641,2419.7,2419.6,5.34812]
[1750469443302,0.82639,2419.7,2419.6,9.7028]
[1750469445213,0.82639,2419.7,2419.6,10.52922]
[1750469446304,0.8263,2420.0,2419.8,0.82633]
[1750469446498,3.9092,2420.2,2419.9,0.82631]
[1750469446707,0.82625,2420.1,2419.9,7.32131]
[1750469447408,0.82636,2419.8,2419.7,2.082]
[1750469447598,0.82636,2419.8,2419.6,9.93608803]
[1750469447599,0.82639,2419.7,2419.6,9.7028]
[1750469447803,0.82639,2419.7,2419.6,10.52922]
[1750469448207,0.82639,2419.7,2419.6,9.7028]
[1750469448409,0.82638,2419.8,2419.6,10.52922]
[1750469449512,0.82639,2419.7,2419.6,10.52922]
[1750469449716,0.82639,2419.7,2419.6,9.7028]
[1750469450012,5.49495676,2419.8,2419.3,3.2078]
[1750469450314,0.82649,2419.4,2419.3,9.7028]
[1750469451113,2.004,2419.6,2419.3,9.7028]
[1750469451315,0.82649,2419.4,2419.3,9.7028]
[1750469459515,2.004,2419.6,2419.0,3.29929127]
[1750469459516,6.63679676,2419.5,2419.0,3.29929127]
[1750469459820,6.63679676,2419.5,2418.9,0.6481]
[1750469459821,0.82663,2419.0,2418.9,0.6481]
[1750469460525,0.82662,2419.1,2418.9,1.47476]
[1750469460825,0.82663,2419.0,2418.9,1.47476]
[1750469461221,0.82663,2419.0,2418.9,0.6481]
[1750469462022,0.82658,2419.2,2419.0,0.82661]
[1750469462213,0.82659,2419.1,2419.0,3.42899676]
[1750469463219,0.82658,2419.2,2419.0,4.25561676]
[1750469464119,0.82658,2419.2,2419.0,3.42899676]
[1750469464325,0.82658,2419.2,2419.0,4.25561676]
[1750469464815,0.6617,2419.3,2419.0,6.63679676]
[1750469465020,1.48826,2419.3,2419.1,1.52298]
[1750469465417,1.48826,2419.3,2419.2,0.678]
[1750469465817,0.82651,2419.4,2419.2,1.50455]
[1750469466018,0.6783,2419.5,2419.2,4.93354676]
[1750469466219,0.82653,2419.3,2419.2,4.10699676]
[1750469467821,0.82653,2419.3,2419.2,0.678]
[1750469468521,0.82656,2419.2,2419.1,0.6964]
[1750469468718,0.82656,2419.2,2419.1,7.1914]
[1750469468921,0.82655,2419.3,2419.1,9.39647]
[1750469469122,0.82655,2419.3,2419.2,0.6961]
[1750469471424,0.82651,2419.4,2419.2,1.52265]
[1750469471925,0.82649,2419.4,2419.2,2.0488]
[1750469472124,0.82653,2419.3,2419.2,5.47779676]
[1750469472326,0.82653,2419.3,2419.2,2.0488]
[1750469473122,0.6595,2419.5,2419.0,3.2078]
[1750469473319,0.6702,2419.2,2418.8,6.495]
[1750469473514,0.6702,2419.2,2418.8,7.32169]
[1750469473721,1.3909,2419.4,2419.0,3.42899676]
[1750469473922,0.82658,2419.2,2419.1,0.6531]
[1750469476329,0.82663,2419.0,2418.9,6.495]
[1750469476528,0.82663,2419.0,2418.9,7.1943]
[1750469477334,0.82663,2419.0,2418.9,8.02096]